Cogmind - Beta 13 @@@ ROGUE MODE // 2024.03.23 @ 15:42:53 Player: Waste Result: Destroyed by Y1-XRQ(R) with Subdweller Laser Performance ------------- Evolutions (0) 0 Regions Visited (2) 400 Robots Destroyed (20) 100 Value Destroyed (596) 596 Prototype IDs (3) 60 Alien Tech Used (0) 0 Bonus (0) 0 TOTAL SCORE: 1156 Bonus ------- None Cogmind --------- Core Integrity 0/250 Matter 258/300 Energy 200/200 System Corruption 0% Temperature Cool (6) Movement Rolling (95) Location -10/Subcaves Parts ------- > --- POWER (1) -------- Subdweller Power Source > --- PROPULSION (2) --- Wheel Subdweller Monowheel > --- UTILITY (2) ------ (None) > --- WEAPON (2) ------- Battle Cannon Hammer > --- INVENTORY (5) ---- Ion Engine Light Treads Subdweller Beam Cannon Battle Cannon Peak State ------------ > --- POWER ------------ Ion Engine > --- PROPULSION ------- Wheel Subdweller Monowheel > --- UTILITY ---------- Small Storage Unit Makeshift Kinetic Plating > --- WEAPON ----------- Subdweller Beam Cannon Battle Cannon > --- INVENTORY -------- Ion Engine Subdweller Power Source Light Treads Aluminum Leg Structural Scanner Subdweller Machine Gun Battle Cannon Hammer [Rating: 14] Favorites ----------- Power Ion Engine Engine Ion Engine Propulsion Aluminum Leg Treads Light Treads Leg Aluminum Leg Wheel Wheel Utility Small Storage Unit Device Heat Sink Storage Small Storage Unit Protection Scrap Shield Weapon Assault Rifle Energy Gun Medium Laser Energy Cannon Subdweller Beam Cannon Ballistic Gun Assault Rifle Ballistic Cannon Battle Cannon Impact Weapon Hammer Build | -11 -10 -10 ------- Run | Yrd Mat Sub Slots Evolved . | . . . Power . | . . . Propulsion . | . . . Utility . | . . . Weapon . | . . . Parts Attached 23 | . 7 16 Power 2 | . 1 1 Engine 2 | . 1 1 Core . | . . . Reactor . | . . . Propulsion 6 | . 2 4 Treads 1 | . . 1 Leg 2 | . 2 . Wheel 3 | . . 3 Hover . | . . . Flight . | . . . Utility 4 | . 2 2 Device 2 | . 2 . Storage . | . . . Processor . | . . . Hackware . | . . . Protection 2 | . . 2 Artifact . | . . . Weapon 11 | . 2 9 Energy Gun 1 | . 1 . Energy Cannon 2 | . . 2 Ballistic Gun 1 | . . 1 Ballistic Cannon 4 | . . 4 Launcher . | . . . Special Weapon . | . . . Impact Weapon 3 | . 1 2 Slashing Weapon . | . . . Piercing Weapon . | . . . Special Melee Weapon . | . . . Unidentified Prototypes . | . . . Parts Lost 5 | . . 5 Power 1 | . . 1 Propulsion 3 | . . 3 Utility 1 | . . 1 Weapon . | . . . Highest Loss Streak 2 | . . 2 To Critical Strikes . | . . . Average Slot Usage (%) 96 | . 98 94 Engine 13 | . 14 13 Treads 2 | . . 4 Leg 15 | . 28 5 Wheel 9 | . . 16 Device 9 | . 12 6 Storage 11 | . 14 10 Protection 3 | . . 7 Energy Gun 4 | . 11 . Energy Cannon 3 | . . 6 Ballistic Gun 10 | . 15 6 Ballistic Cannon 3 | . . 6 Impact Weapon 4 | . . 7 Naked Turns . | . . . Heaviest Build 34 | 13 15 34 Greatest Support 30 | 20 20 30 Greatest Overweight (x) 2 | . . 2 Average Overweight (x) . | . . . Largest Inventory Capacity 8 | . 8 8 Average Capacity 7 | . 8 7 Most Carried 8 | . 8 8 Average Carried 7 | . 7 6 Final Capacity 8 | 8 8 5 Final Carried 8 | 6 8 4 Class Distribution -------------------- 86% | Mutant 13% | Subdweller-Mutant Dominant Class ---------------- Mutant | -10/Materials Mutant | -10/Subcaves Resources | -11 -10 -10 ----------- Run | Yrd Mat Sub Matter Collected 660 | 187 174 299 Remotely . | . . . Salvage Created 581 | . 293 288 Parts 37 | . 23 14 Haulers Intercepted . | . . . Recyclers Shooed 1 | . 1 . Parts Field Recycled . | . . . Retrieved Matter . | . . . Parts Self-Destructed 5 | . . 5 Prevented . | . . . Kills | -11 -10 -10 ------- Run | Yrd Mat Sub Combat Hostiles Destroyed 19 | . 10 9 Guns 11 | . 10 1 Cannons 8 | . . 8 Classes Destroyed 4 | . 3 1 Watcher 1 | . 1 . Swarmer 5 | . 5 . Grunt 5 | . 5 . Subdweller 9 | . . 9 Best Kill Streak 3 | . 3 2 Combat Bots Only 3 | . 3 2 Max Kills in Single Turn 2 | . 2 1 Gunslinging 1 | . 1 . Exploded . | . . . Melee . | . . . Uniques/NPCs Destroyed . | . . . Combat | -11 -10 -10 -------- Run | Yrd Mat Sub Hostile Shots Fired 104 | . 40 64 Missed 25 | . 8 17 Damage Taken 1570 | . 321 1249 Core 255 | . 39 216 Absorbed by Shields . | . . . Ignored by Resistances 16 | . . 16 Core Remaining (%) 100 | 100 . . Volleys Fired 81 | . 38 43 Largest 2 | . 2 2 Hottest 119 | . 70 119 Shots Fired 154 | . 76 78 Gun 86 | . 76 10 Cannon 68 | . . 68 Launcher . | . . . Special . | . . . Kinetic 87 | . 40 47 Thermal 67 | . 36 31 Explosive . | . . . Electromagnetic . | . . . Robot Hit Streak 11 | . 10 11 Robot Miss Streak 3 | . 3 2 Penetration Max . | . . . Secondary Targets 1 | . 1 . Max Gunslinging Chain 1 | . 1 . Shots Hit Robots 114 | . 55 59 Core Hits 33 | . 19 14 Critical Kills . | . . . Critical Parts Destroyed . | . . . Critical Strikes 5 | . 2 3 Burn 2 | . 2 . Blast 3 | . . 3 Melee Attacks 19 | . 9 10 Impact 19 | . 9 10 Slashing . | . . . Piercing . | . . . Sneak Attacks . | . . . Combat Hostiles . | . . . Follow-up Attacks . | . . . Damage Inflicted 2104 | . 767 1337 Guns 914 | . 745 169 Cannons 1168 | . . 1168 Explosions . | . . . Melee . | . . . Ramming 22 | . 22 . Kinetic 1130 | . 387 743 Thermal 952 | . 358 594 Explosive . | . . . Electromagnetic . | . . . Impact . | . . . Slashing . | . . . Piercing . | . . . Highest Corruption . | . . . Average Corruption . | . . . Corruption Purged . | . . . Corruption Blocked . | . . . Overload Shots . | . . . Overflow Damage . | . . . Projectiles . | . . . Explosions . | . . . Melee . | . . . Knockbacks 7 | . . 7 Impact . | . . . Kinetic 7 | . . 7 Secondary . | . . . Self-Inflicted Damage . | . . . Shots . | . . . Rammed . | . . . Targets Rammed 4 | . 4 . Kicked 4 | . 4 . Crushed . | . . . Highest Temperature 44 | . . 44 Average Temperature 17 | . . 17 Received Heat Transfer 354 | . 126 228 Siege Activations . | . . . Robots Corrupted . | . . . Combat Hostiles . | . . . Parts Fried . | . . . Impact Corruptions . | . . . Robots Melted . | . . . Combat Hostiles . | . . . Parts Melted 3 | . 2 1 Heat Transferred 1961 | . 1147 814 Parts Sabotaged . | . . . Parts Stolen . | . . . Parts Stripped . | . . . Power Chain Reactions . | . . . Alert | -11 -10 -10 ------- Run | Yrd Mat Sub Peak Influence 207 | . 207 . Initial . | . . . Average 103 | . 103 . Maximum Alert Level 1 | . 1 . Low Security (%) 92 | . 92 . Level 1 7 | . 7 . Level 2 . | . . . Level 3 . | . . . Level 4 . | . . . Level 5 . | . . . High Security . | . . . Max Security . | . . . Squads Dispatched 3 | . 3 . Investigation 2 | . 2 . Extermination . | . . . Reinforcement 1 | . 1 . Assault . | . . . Garrison . | . . . Intercept . | . . . Searches Triggered . | . . . Construction Impeded . | . . . Haulers Reinforced . | . . . Active Scanning Responses . | . . . Cargo Convoy Interrupts . | . . . Stealth | -11 -10 -10 --------- Run | Yrd Mat Sub Distress Signals . | . . . Communications Jammed . | . . . Distress Signals . | . . . Times Spotted 38 | . 26 12 Peak Tracking Total 5 | . 5 2 Tactical Retreats 2 | . 1 1 Traps | -11 -10 -10 ------- Run | Yrd Mat Sub Traps Triggered 8 | . 2 6 Indirectly . | . . . Trap Hack Attempts . | . . . Triggered . | . . . Disarmed . | . . . Reprogrammed . | . . . Reused . | . . . Traps Extracted . | . . . Installed . | . . . Triggered . | . . . Machines | -11 -10 -10 ---------- Run | Yrd Mat Sub Machines Disabled . | . . . Max in Single Turn . | . . . Machines Repaired . | . . . Machines Dismantled . | . . . Machines Sabotaged . | . . . Overloaded Fab Kills . | . . . Hacking | -11 -10 -10 --------- Run | Yrd Mat Sub Machines Accessed 6 | . 5 1 Terminals 5 | . 5 . Fabricators . | . . . Repair Stations . | . . . Recycling Units . | . . . Scanalyzers . | . . . Garrison Access . | . . . Total Hacks 25 | . 22 3 Successful 13 | . 10 3 Failed 12 | . 12 . Catastrophic 1 | . 1 . Database Lockouts . | . . . Manual 20 | . 20 . Terminals 22 | . 22 . Fabricators . | . . . Repair Stations . | . . . Recycling Units . | . . . Scanalyzers . | . . . Garrison Access . | . . . Terminal Hacks 9 | . 6 3 Record 3 | . . 3 Robot Analysis 2 | . 2 . Prototype ID Bank 2 | . 2 . Registered Components 2 | . 2 . Fabricator Hacks . | . . . Repair Station Hacks . | . . . Recycling Unit Hacks . | . . . Scanalyzer . | . . . Garrison Access Hacks . | . . . Unauthorized Hacks 4 | . 4 . Terminals 4 | . 4 . Botnet 4 | . 4 . Fabricators . | . . . Repair Stations . | . . . Recycling Units . | . . . Scanalyzers . | . . . Garrison Access . | . . . Data Cores Recovered . | . . . Used . | . . . Hacking Detections 5 | . 5 . Full Trace Events . | . . . Feedback Events . | . . . Feedback Blocked . | . . . Robot Schematics Acquired . | . . . Robots Built . | . . . Authchips . | . . . Time . | . . . Total Robot Build Rating . | . . . Part Schematics Acquired . | . . . Parts Built . | . . . Authchips . | . . . Time . | . . . Total Part Build Rating . | . . . Parts Repaired . | . . . Time . | . . . Parts Recycled . | . . . Recycled Matter . | . . . Retrieved Matter . | . . . Retrieved Components . | . . . Parts Scanalyzed . | . . . Part Schematics Acquired . | . . . Parts Damaged . | . . . Bothacking | -11 -10 -10 ------------ Run | Yrd Mat Sub Used RIF Installer . | . . . Robots Hacked . | . . . Non-combat . | . . . Combat . | . . . Robot Hacks Applied . | . . . Relay Couplers Released . | . . . Fabnet Peak Effective % . | . . . Robots Rewired . | . . . Allies Hacked . | . . . Hacks Repelled . | . . . Allies | -11 -10 -10 -------- Run | Yrd Mat Sub Total Allies . | . . . Largest Group . | . . . Highest-Rated Group . | . . . Highest-Rated Ally . | . . . Total Orders . | . . . Ally Attacks . | . . . Total Damage . | . . . Kills . | . . . Allies Corrupted . | . . . Allies Melted . | . . . Intel | -11 -10 -10 ------- Run | Yrd Mat Sub Robot Analysis Total 2 | . 2 . Derelict Logs Recovered 1 | . . 1 Drone Launches . | . . . Drone Recoveries . | . . . Exploration | -11 -10 -10 ------------- Run | Yrd Mat Sub Turns Passed 2052 | . 903 1149 Spaces Moved 1245 | 1 357 887 Core . | . . . Treads 1 | . . 1 Legs 534 | 1 357 176 Wheels 710 | . . 710 Hover . | . . . Flight . | . . . Fastest Speed 95 | 120 120 95 Average Speed 108 | 120 120 103 Slowest Speed 160 | 120 120 160 Overloaded Moves . | . . . Propulsion Burnouts . | . . . Robots Hopped . | . . . Cave-ins Triggered . | . . . Exploration Rate (%) 37 | 2 49 60 Regions Visited 2 Branch Regions 1 Pre-discovered Areas . | . . . Known Exits Taken . | . . . Unknown Exits Taken 2 | 1 1 . Scrap Searched 1 | . . 1 Spaces Dug 1 | . 1 . Terrain Destroyed 6 | . 1 5 Melee 1 | . 1 . Projectile 5 | . . 5 AOE . | . . . Terrain Rammed . | . . . Walls Destroyed . | . . . Machines Disabled . | . . . Actions | -11 -10 -10 --------- Run | Yrd Mat Sub Total 1756 | . 742 1014 Wait 349 | . 314 35 Move 1243 | . 356 887 Hop . | . . . Pick Up 14 | . 6 8 Fast Attach 5 | . 1 4 Attach 4 | . 1 3 Detach . | . . . Swap 14 | . 5 9 Drop 19 | . 8 11 Fire 81 | . 38 43 Melee 19 | . 9 10 Ram . | . . . Kick 4 | . 4 . Crush . | . . . Escape Stasis . | . . . Rewire . | . . . Trap . | . . . Miscellaneous 4 | . . 4 Route ------- -11/Scrapyard -10/Materials (discovered 2 exits: [*Mat] / *Sub) -10/Subcaves History --------- Turn | Location | Event 1 | -11/Scrapyard | Discovered new exit (range 0) 1 | -11/Scrapyard | Entered Materials 154 | -10/Materials | Discovered new exit (range 9) 316 | -10/Materials | Build established: Mutant 863 | -10/Materials | Discovered new exit (range 3) 904 | -10/Materials | Entered Subcaves 986 | -10/Subcaves | A swath of the cavern ceiling suddenly collapsed 1079 | -10/Subcaves | A swath of the cavern ceiling suddenly collapsed 1440 | -10/Subcaves | Shifting Twisted Machinery released Sub. Laser 1448 | -10/Subcaves | Shifting Twisted Machinery released Mak. Kinetic Plating 1602 | -10/Subcaves | Learned Materials garrison access intel 1615 | -10/Subcaves | Visited Clippyterm 1618 | -10/Subcaves | Learned Factory garrison access intel 1715 | -10/Subcaves | Core integrity fell below 50% 1899 | -10/Subcaves | Ambushed by Subdwellers from Twisted Machinery 1995 | -10/Subcaves | Core integrity fell below 20% 2053 | -10/Subcaves | Destroyed by Y1-XRQ(R) with Subdweller Laser Last Messages --------------- 01932_ Scrap Shield Fragment affixed to Scrap Shield (+45). 01934_ Scrap Shield Fragment affixed to Scrap Shield (+31). 01936_ Acquired 2 matter. 01945_ Acquired 3 matter. 01985_ Triggered Piercing Trap. 01985_ Spikes shoot up from the floor. 01985_ Critical hit (Impale). 01987_ Triggered Piercing Trap. 01987_ Spikes shoot up from the floor. 01988_ Triggered Piercing Trap. 01988_ Spikes shoot up from the floor. 01988_ Critical hit (Impale). 01990_ Triggered Piercing Trap. 01990_ Spikes shoot up from the floor. 01990_ Critical hit (Impale). 01994_ Triggered Shrapnel Trap. 01994_ An expanding cloud of shrapnel blasts out in all directions. 01998_ Triggered Shrapnel Trap. 01998_ An expanding cloud of shrapnel blasts out in all directions. 02045_ Scrap Shield destroyed. Map ----- +----------------------------------------------------+ | ??????????????????????????????????????????????? | | ?????????????????????????????????????????????### | | ?????????????????????????????????????????????# | | ?????????????????????????????????????????????# | | ??????????????????????????????????????????????# | | ??????????????????????????????????????????????## | | ???????????????????????????????????????????????# | | ????????????????????????????????????##?????????# | | ???????????????????????????????????## #????????# | | ??????????????????????????????????## #???????# | | ????????????????????????????????? ###?#### | | ????????????????????????? ????? ## | | ????????????????????????? ???? | | ????????????????????????# ?????? ## | | ##??????????????????????# ?????????# ## | | #??????????????????????# ??????????# # | | #?????????????????????? ??????????## ## | | ##????????????????????? ???????????# #? | | #?????????????????????# #??????????## # ##? | | ####??????????????????# ???????????# ?## ##?? | | ^ "####??????????????## ?????????? ??#"###?? | | """#?????????????? #" ?????????# ###"#### | | "#??????????????? #?????????# ##"""### | | """ ""#????????????????" #?????????# #"""""" | | " "#""" #???????????????##R##????????####""""### | | " # ##???????????????#@ ##?????????####"#?## | | "######???????????????# %##????????# ##??# | | # ###???????##????### #????????# ??# | | ##??????# ###?## ##????????## ?# | | #??????# ### #?????????? ?# | | ## # ######?# ## ##?? ##????# ??# | | ##### # ## ### ## ### ##???## ??# | | ### # # ??# | | # ### ??# | | =% ### ??# | | # %& ## #### ???# | | ### ##?????? ???# | | ## ##?????????????# | | ##???????????????? ## | | ### #????????????????????? | | #?## #????????????????????# | | ## #?# ??????????????????# | | ## ## ### ????????????????# | | ### #######?# ####???????????????# | | ### ##???????# ##??????????????????? | | ##?######????????######???????????????????? | | ##?????????????????????????????????????????? | | ## #??????????????????????????????????????????? | | ?# ##??????????????????????????????????????????? | | ? #???????????????????????????????????????????? | +----------------------------------------------------+ Best States ------------- Heat Dissipation 35 Energy Generation 15 Energy Capacity 250 Matter Stores 300 Matter Capacity 300 Sight Range 16 Terrain Scan Density 10 Armor Coverage 800 Resistance: KI 10 Evasion (%) 55 Recoil Reduction 1 Item Schematics ----------------- None Robot Schematics ------------------ None Fabricated ------------ Nothing Alien Tech Used ----------------- None Achievements -------------- None Challenges ------------ None Game ------ Seed TransportHackingSteel Manual? 0 Play Time 00:16:23 Cumulative 165.9 hours Start 2024.03.20 @ 19:24:55 End 2024.03.23 @ 15:42:53 Sessions 3 Manual Loads 0 Difficulty Rogue Special Mode None Game No. 233 Rogue 233 Adventurer 0 Explorer 0 Win Type - Total 3 Types 2/0/0/1/0/0/0/0/0 Lore% 63 Gallery% 72 Achievement% 65 Wizard Run 0 Options --------- Layout 0 ASCII 0 Keyboard 0 Movement Numpad Keybinds 0 Fullscreen 1 Font 18/SmallcapsGlow Map View 76x50 Zoom Use 0% Tactical HUD 1 Map Filters NONE Filters NONE Steam 1 RUN: bddb7612-d687-4de4-902a-e0c08f361de8